bitfinex/quotes_BTCUSD_20240715
["timestamp","ask_amount","ask_price","bid_price","bid_amount"]
[1721027098926,2.12816864,62938.0,62937.0,0.009174]
[1721027099280,2.47009257,62938.0,62937.0,0.009174]
[1721027099483,1.53932993,62932.0,62931.0,0.001]
[1721027099754,1.9595082,62932.0,62931.0,0.001]
[1721027099889,1.86785956,62932.0,62931.0,0.001]
[1721027100091,1.33883621,62932.0,62931.0,0.001]
[1721027100346,0.92360967,62932.0,62931.0,0.1462]
[1721027100544,0.11272633,62932.0,62931.0,0.14667584]
[1721027100745,0.11272633,62932.0,62931.0,0.23762646]
[1721027100746,0.01272633,62932.0,62931.0,0.23762646]
[1721027100955,0.01272633,62936.0,62931.0,0.00147584]
[1721027101154,0.1,62928.0,62915.0,0.03182]
[1721027101355,0.01421046,62927.0,62915.0,0.492598]
[1721027101514,0.01421046,62927.0,62922.0,0.2258]
[1721027101711,0.1,62928.0,62923.0,0.145]
[1721027101919,0.1,62928.0,62924.0,0.145]
[1721027101920,0.1,62926.0,62924.0,0.145]
[1721027102122,0.1,62925.0,62924.0,0.145]
[1721027102329,0.529081,62925.0,62924.0,0.145]
[1721027102545,0.94986709,62925.0,62924.0,0.145]
[1721027102765,0.82986762,62925.0,62924.0,0.145]
[1721027102969,0.815135,62925.0,62924.0,0.145]
[1721027103389,0.529081,62925.0,62924.0,0.145]
[1721027103556,0.815135,62925.0,62924.0,0.145]
[1721027103758,0.529081,62925.0,62924.0,0.145]
[1721027104167,0.536641,62925.0,62924.0,0.145]
[1721027104362,0.537641,62925.0,62924.0,0.145]
[1721027104587,0.538641,62925.0,62924.0,0.145]
[1721027104805,0.10956,62925.0,62924.0,0.3708]
[1721027106680,0.10956,62925.0,62924.0,0.5383]
[1721027107290,0.00956,62925.0,62924.0,0.3125]
[1721027107556,0.10956,62925.0,62924.0,0.3125]
[1721027108097,0.00306353,62930.0,62929.0,0.343018]
[1721027108298,0.04981061,62937.0,62934.0,0.1675]
[1721027108503,0.04981061,62937.0,62936.0,0.4137]
[1721027108704,0.00306353,62944.0,62939.0,0.1675]
[1721027108908,0.04985187,62949.0,62945.0,0.0204]
[1721027109108,0.12,62959.0,62948.0,0.2258]
[1721027109312,0.14296,62955.0,62950.0,0.0774]
[1721027109512,0.285896,62960.0,62951.0,0.00317656]
[1721027109766,0.08105238,62961.0,62951.0,0.00317656]
[1721027109767,0.01390183,62957.0,62951.0,0.00317656]
[1721027109965,0.142964,62953.0,62952.0,0.00306353]
[1721027110311,0.285916,62956.0,62952.0,0.00306353]
[1721027110312,0.14296,62955.0,62952.0,0.00306353]
[1721027110519,0.142945,62962.0,62954.0,0.3933]
[1721027110721,0.01354697,62961.0,62955.0,0.00317617]
[1721027110961,0.01354697,62960.0,62955.0,0.00317617]
[1721027111163,0.004,62957.0,62955.0,0.00317617]
[1721027111585,0.003,62957.0,62956.0,0.0794]
[1721027112010,0.242948,62960.0,62956.0,0.08257622]
[1721027113577,0.01310272,62959.0,62956.0,0.08557622]
[1721027113920,0.01310272,62959.0,62956.0,0.08553622]
[1721027114119,0.01310272,62959.0,62956.0,0.08253622]
[1721027114526,0.12,62954.0,62953.0,0.0609]
[1721027114756,0.548944,62945.0,62944.0,0.0491985]
[1721027114925,1.1339758,62945.0,62944.0,0.0491985]
[1721027115107,0.5420498,62945.0,62944.0,0.0491985]
[1721027115312,0.5420498,62945.0,62941.0,0.2258]
[1721027115313,0.142988,62942.0,62941.0,0.2258]
[1721027115724,0.15645909,62942.0,62941.0,0.2258]
[1721027115927,0.428954,62944.0,62941.0,0.2258]
[1721027116140,0.285941,62950.0,62942.0,0.0616]
[1721027116343,0.285941,62950.0,62947.0,0.2258]
[1721027116344,0.142975,62948.0,62947.0,0.2258]
[1721027116582,0.11388607,62948.0,62947.0,0.2258]
[1721027116790,0.142962,62954.0,62947.0,0.2874]
[1721027116944,0.142962,62954.0,62948.0,0.00624011]
[1721027116945,0.11354252,62953.0,62948.0,0.00624011]
[1721027117140,0.11354252,62953.0,62949.0,0.077]
[1721027117141,0.01354252,62952.0,62949.0,0.077]
[1721027117423,0.142968,62951.0,62950.0,0.00624014]
[1721027117627,0.15651005,62951.0,62949.0,0.077]
[1721027117780,0.01354205,62950.0,62949.0,0.077]
[1721027118485,0.004,62952.0,62950.0,0.0635]
[1721027118720,0.004,62952.0,62951.0,0.39553993]
[1721027119120,0.004,62952.0,62951.0,0.39236353]
[1721027119845,0.142953,62958.0,62951.0,0.39236353]
[1721027120141,0.1143307,62957.0,62951.0,0.39136353]
[1721027120443,0.0143307,62956.0,62951.0,0.39136353]
[1721027120790,0.1,62957.0,62951.0,0.39136353]
[1721027121023,0.01437875,62956.0,62951.0,0.39036353]
[1721027121223,0.1,62957.0,62951.0,0.39036353]
[1721027121433,0.1,62957.0,62951.0,0.38936353]
[1721027121638,0.01438011,62956.0,62951.0,0.39236353]
[1721027121951,0.285858,62969.0,62952.0,0.0031763]
[1721027122161,0.67221405,62977.0,62965.0,0.0646]
[1721027122162,0.14293,62968.0,62965.0,0.0646]
[1721027122367,0.15734294,62967.0,62966.0,0.00317584]
[1721027122507,0.15734294,62967.0,62965.0,0.0646]
[1721027122508,0.142933,62967.0,62965.0,0.06777587]
[1721027122709,0.28586,62968.0,62965.0,0.06777587]
[1721027122951,0.142934,62966.0,62965.0,0.06777587]
[1721027123188,0.142934,62966.0,62965.0,0.0646]
[1721027123720,0.12,62963.0,62959.0,0.0626]
[1721027123937,0.4059,62959.0,62956.0,0.1535]
[1721027124151,0.142954,62957.0,62956.0,0.1535]
[1721027124364,0.142961,62954.0,62953.0,0.00306353]
[1721027124565,0.142968,62951.0,62950.0,0.00306353]
[1721027124709,0.285923,62954.0,62952.0,0.2258]
[1721027124710,0.142963,62954.0,62952.0,0.2258]
[1721027125041,0.142963,62954.0,62953.0,0.00306353]
[1721027125242,0.285905,62958.0,62953.0,0.00306353]
[1721027125460,0.142957,62956.0,62953.0,0.00306353]
[1721027125672,0.142959,62955.0,62953.0,0.00306353]
[1721027126150,0.142961,62954.0,62953.0,0.00306353]
[1721027126566,0.142957,62956.0,62953.0,0.00206353]
[1721027126770,0.001,62954.0,62953.0,0.00206353]
[1721027127334,0.142961,62954.0,62953.0,0.00206353]
[1721027127534,0.262961,62954.0,62953.0,0.00406353]
[1721027127960,0.548884,62954.0,62953.0,0.00406353]
[1721027128162,0.428884,62954.0,62953.0,0.00206353]
[1721027128360,0.428884,62954.0,62953.0,0.00606353]
[1721027128580,0.430884,62954.0,62953.0,0.00606353]
[1721027129487,0.428884,62954.0,62953.0,0.00606353]
[1721027129693,0.142963,62953.0,62952.0,0.2258]
[1721027130119,1.120744,62953.0,62952.0,0.2258]
[1721027130329,0.142972,62949.0,62948.0,0.0647]
[1721027130494,0.142969,62951.0,62948.0,0.06676353]
[1721027130662,0.002,62954.0,62950.0,0.2258]
[1721027130863,0.142968,62951.0,62950.0,0.2258]
[1721027131064,0.287926,62954.0,62950.0,0.3933]
[1721027131065,0.002,62954.0,62950.0,0.3933]
[1721027131264,0.144962,62954.0,62951.0,0.00206353]
[1721027131470,0.12,62957.0,62951.0,0.00106353]
[1721027131666,0.142966,62952.0,62951.0,0.00106353]
[1721027131869,0.428898,62952.0,62951.0,0.00106353]
[1721027132520,0.142966,62952.0,62951.0,0.00106353]
[1721027133127,0.142966,62952.0,62951.0,0.00206353]
[1721027133699,0.142964,62953.0,62951.0,0.00206353]
[1721027134054,0.142964,62953.0,62951.0,0.00306353]
[1721027134465,1.36095754,62952.0,62951.0,0.002]
[1721027134667,1.31990516,62952.0,62951.0,0.002]
[1721027134868,1.37990516,62952.0,62951.0,0.001]
[1721027135732,0.142986,62943.0,62942.0,0.00106353]
[1721027135900,0.142988,62942.0,62941.0,0.04975441]
[1721027136121,0.142991,62941.0,62940.0,0.2258]
[1721027136357,0.44384227,62941.0,62940.0,0.2258]
[1721027136909,0.44384227,62941.0,62940.0,0.23484228]
[1721027136910,0.44384175,62941.0,62940.0,0.23484228]
[1721027137319,1.28020575,62941.0,62940.0,0.00904228]
[1721027137519,1.38020575,62941.0,62940.0,0.00904228]
[1721027137774,0.429048,62930.0,62929.0,0.04960324]
[1721027137946,0.44391675,62930.0,62929.0,0.04960324]
[1721027138109,0.44391675,62930.0,62929.0,0.06783081]
[1721027138313,0.286038,62929.0,62925.0,0.3933]
[1721027138517,0.01486875,62928.0,62925.0,0.3933]
[1721027139160,0.143023,62927.0,62925.0,0.3933]
[1721027141092,0.144023,62927.0,62925.0,0.4003]
[1721027141631,0.144023,62927.0,62926.0,0.2258]
[1721027141839,0.145023,62927.0,62926.0,0.2258]
[1721027142348,0.143025,62926.0,62925.0,0.179413]
[1721027142503,0.143025,62926.0,62925.0,0.405213]
[1721027142704,0.429075,62926.0,62925.0,0.401213]
[1721027143107,0.835125,62926.0,62925.0,0.007913]
[1721027143311,0.85106737,62926.0,62925.0,0.000913]
[1721027143498,0.73206737,62926.0,62925.0,0.02315982]
[1721027143856,0.73206737,62926.0,62925.0,0.004913]
[1721027144843,0.01694237,62926.0,62925.0,0.004913]
[1721027145020,0.01694237,62926.0,62925.0,0.54799064]
[1721027145021,0.001,62926.0,62925.0,0.54799064]
[1721027145222,0.002,62926.0,62925.0,0.57535341]
[1721027146335,0.00080881,62927.0,62926.0,0.31158853]
[1721027146538,0.00080881,62927.0,62926.0,0.17174072]
[1721027146760,0.00080881,62927.0,62926.0,0.19007836]
[1721027146963,0.00080881,62927.0,62926.0,0.33310336]
[1721027147360,0.00080881,62927.0,62926.0,0.61915336]
[1721027147582,0.00080881,62927.0,62926.0,0.33310336]
[1721027147782,0.00180881,62927.0,62926.0,0.34010336]
[1721027148125,0.00180881,62927.0,62926.0,0.52163157]
[1721027148345,0.00180881,62927.0,62926.0,0.88939304]
[1721027148547,0.001,62927.0,62926.0,0.88939304]
[1721027149018,0.001,62927.0,62926.0,0.89645657]
[1721027149019,0.002,62927.0,62926.0,0.89645657]
[1721027149498,0.002,62927.0,62926.0,1.18250657]
[1721027150770,0.002,62927.0,62926.0,0.89539304]
[1721027151377,0.002,62927.0,62926.0,0.89677436]
[1721027151578,0.002,62927.0,62926.0,0.56894396]
[1721027152184,0.002,62927.0,62926.0,0.85499396]
[1721027152437,0.002,62927.0,62926.0,0.85393043]
[1721027152632,0.002,62927.0,62926.0,0.85499396]
[1721027153098,0.002,62927.0,62926.0,0.85393043]
[1721027153547,0.002,62927.0,62926.0,1.48218043]
[1721027153777,0.143002,62936.0,62929.0,0.1673]
[1721027153984,0.0163589,62935.0,62933.0,0.2258]
[1721027154179,0.2593639,62935.0,62933.0,0.2258]
[1721027154350,0.529014,62935.0,62934.0,0.01829311]
[1721027154572,0.54558632,62935.0,62934.0,0.01829311]
[1721027154746,0.95159532,62935.0,62934.0,0.01829311]
[1721027154945,0.143006,62934.0,62933.0,0.2258]
[1721027155168,0.25957832,62934.0,62933.0,0.2258]
[1721027155371,0.54559132,62934.0,62933.0,0.2258]
[1721027155566,0.54559132,62934.0,62933.0,0.24409792]
[1721027155768,0.54559132,62934.0,62933.0,0.2258]
[1721027155999,0.54559132,62934.0,62933.0,0.24409792]
[1721027156733,0.83360432,62934.0,62933.0,0.24409792]
[1721027157555,0.73560432,62934.0,62933.0,0.24409792]
[1721027157963,0.44959132,62934.0,62933.0,0.24409792]
[1721027158166,0.44759132,62934.0,62933.0,0.24409792]
[1721027158371,0.44559132,62934.0,62933.0,0.24409792]
[1721027159571,0.429019,62934.0,62933.0,0.24409792]
[1721027159717,0.44559751,62934.0,62933.0,0.24409792]
[1721027159920,0.433019,62934.0,62933.0,0.24409792]
[1721027160119,0.44959855,62934.0,62933.0,0.24409792]
[1721027160337,0.16358555,62934.0,62933.0,0.24409792]
[1721027160521,0.44791175,62934.0,62933.0,0.24409792]
[1721027161028,0.56791175,62934.0,62933.0,0.24409792]
[1721027161229,0.85392475,62934.0,62933.0,0.24409792]
[1721027161613,0.85192475,62934.0,62933.0,0.24409792]
[1721027161745,0.84992475,62934.0,62933.0,0.24509792]
[1721027161947,0.8333452,62934.0,62933.0,0.24509792]
[1721027162144,0.84984298,62934.0,62933.0,0.24509792]
[1721027163295,0.85084298,62934.0,62933.0,0.24409792]
[1721027163445,0.84984298,62934.0,62933.0,0.24409792]
[1721027164012,0.85084298,62934.0,62933.0,0.24409792]
[1721027164612,0.85084298,62934.0,62933.0,0.2258]
[1721027165580,0.01749778,62934.0,62933.0,0.2258]
[1721027165825,0.28594,62951.0,62935.0,0.1673]
[1721027166035,0.00083,62954.0,62950.0,0.2258]
[1721027166232,0.00083,62954.0,62951.0,0.17047624]
[1721027166433,0.00083,62954.0,62951.0,0.18863183]
[1721027166833,0.00083,62954.0,62951.0,0.18545559]
[1721027167010,0.142965,62953.0,62951.0,0.18445559]
[1721027167313,0.00083,62954.0,62951.0,0.18445559]
[1721027167757,0.00083,62954.0,62951.0,0.18745559]
[1721027168181,0.00083,62954.0,62953.0,0.3095]
[1721027168313,0.286682,62970.0,62953.0,0.3095]
[1721027168314,0.14293,62968.0,62957.0,0.1653]
[1721027168524,0.00083,62970.0,62966.0,0.2258]
[1721027168922,0.00083,62970.0,62967.0,0.02084249]
[1721027169123,0.00083,62970.0,62967.0,0.02116033]
[1721027169547,0.00083,62970.0,62968.0,0.1653]
[1721027169744,0.00083,62970.0,62968.0,0.16561784]
[1721027169943,0.00083,62970.0,62969.0,0.18295739]
[1721027170235,0.00083,62970.0,62969.0,0.18327523]
[1721027170589,0.00083,62970.0,62969.0,0.17527523]
[1721027170786,0.00083,62970.0,62969.0,0.18192293]
[1721027171287,0.00083,62970.0,62969.0,0.18792293]
[1721027171706,0.00083,62970.0,62969.0,0.19392293]
[1721027173067,0.00083,62970.0,62969.0,0.19709839]
[1721027174203,0.00083,62970.0,62969.0,1.28232539]
[1721027174549,0.00083,62970.0,62969.0,1.65085793]
[1721027175072,0.00083,62970.0,62969.0,1.26500393]
[1721027175317,0.00083,62970.0,62969.0,1.25900393]
[1721027175560,0.00083,62970.0,62969.0,1.25300393]
[1721027175799,0.00028831,62970.0,62969.0,1.26100393]
[1721027176022,0.00028831,62970.0,62969.0,0.70392293]
[1721027176225,0.00028831,62970.0,62969.0,0.20392293]
[1721027176423,0.00028831,62970.0,62969.0,0.34684993]
[1721027177141,0.00028831,62970.0,62969.0,0.33284993]
[1721027177387,0.00028831,62970.0,62969.0,0.34684993]
[1721027177600,0.00028831,62970.0,62969.0,0.33884993]
[1721027177789,0.00028831,62970.0,62969.0,0.32484993]
[1721027177969,0.00028831,62970.0,62969.0,0.18192293]
[1721027178183,0.00028831,62970.0,62969.0,0.19592293]
[1721027178560,0.00028831,62970.0,62969.0,0.20992293]
[1721027178769,0.00028831,62970.0,62969.0,0.22392293]
[1721027178982,0.00028831,62970.0,62969.0,0.19592293]
[1721027179790,0.54906331,62970.0,62969.0,0.03062293]
[1721027179990,0.83491331,62970.0,62969.0,0.02062293]
[1721027180194,0.83491331,62970.0,62969.0,0.014]
[1721027180400,0.83491331,62970.0,62969.0,0.028]
[1721027180787,0.00028831,62970.0,62969.0,0.014]
[1721027180995,0.00028831,62970.0,62969.0,0.2528]
[1721027181189,0.00028831,62970.0,62969.0,0.25115391]
[1721027181397,0.00028831,62970.0,62969.0,0.23815391]
[1721027181602,0.00028831,62970.0,62969.0,0.25215391]
[1721027181956,0.00428831,62970.0,62969.0,0.25215391]
[1721027182157,0.00428831,62970.0,62969.0,0.24132943]
[1721027182361,0.00828831,62970.0,62969.0,0.24132943]
[1721027183645,0.00028831,62970.0,62969.0,0.40882943]
[1721027183846,0.00028831,62970.0,62969.0,0.83761043]
[1721027184115,0.00028831,62970.0,62969.0,0.84161043]
[1721027184313,0.00028831,62970.0,62969.0,1.12746443]
[1721027184532,0.00028831,62970.0,62969.0,1.13246443]
[1721027185107,0.00028831,62970.0,62969.0,1.12746443]
[1721027185308,0.00028831,62970.0,62969.0,1.13546443]
[1721027185520,0.00028831,62970.0,62969.0,1.13146443]
[1721027185826,0.00028831,62970.0,62969.0,0.83761043]
[1721027186174,0.00028831,62970.0,62969.0,0.84861043]
[1721027186802,0.00028831,62970.0,62969.0,0.85661043]
[1721027187212,0.00028831,62970.0,62969.0,0.84861043]
[1721027187411,0.00028831,62970.0,62969.0,1.04861043]
[1721027187614,0.00028831,62970.0,62969.0,1.34446443]
[1721027187815,0.00028831,62970.0,62969.0,1.14446443]
[1721027188221,0.00028831,62970.0,62969.0,0.85543491]
[1721027188677,0.00028831,62970.0,62969.0,1.14128891]
[1721027188915,0.00028831,62970.0,62969.0,1.34128891]
[1721027189257,0.00028831,62970.0,62969.0,1.44128891]
[1721027189661,0.00028831,62970.0,62969.0,1.47310891]
[1721027190264,0.00028831,62970.0,62969.0,1.75896291]
[1721027190500,0.00028831,62970.0,62969.0,1.45210891]
[1721027190706,0.00028831,62970.0,62969.0,1.46210891]
[1721027190901,0.00028831,62970.0,62969.0,1.47310891]
[1721027191129,0.00028831,62970.0,62969.0,1.46310891]
[1721027191459,0.00028831,62970.0,62969.0,1.46610891]
[1721027191857,0.00028831,62970.0,62969.0,1.48010891]
[1721027192072,0.00028831,62970.0,62969.0,1.28010891]
[1721027193595,0.00028831,62970.0,62969.0,0.89425491]
[1721027194523,0.00028831,62970.0,62969.0,0.88025491]
[1721027194723,0.00028831,62970.0,62969.0,1.15210891]
[1721027194953,0.00028831,62970.0,62969.0,1.16610891]
[1721027195157,0.00028831,62970.0,62969.0,1.38010891]
[1721027196470,0.00028831,62970.0,62969.0,1.18010891]
[1721027197012,0.00028831,62970.0,62969.0,1.36610891]
[1721027197213,0.00028831,62970.0,62969.0,1.35210891]
[1721027197420,0.00028831,62970.0,62969.0,1.38010891]
[1721027197750,0.00028831,62970.0,62969.0,1.51202123]
[1721027198944,0.00028831,62970.0,62969.0,1.28020123]
[1721027199184,0.00028831,62970.0,62969.0,1.46620123]
[1721027200657,0.00028831,62970.0,62969.0,1.48020123]
[1721027200863,0.00028831,62970.0,62969.0,1.48019988]
[1721027201062,0.00028831,62970.0,62969.0,1.46619988]
[1721027201958,0.00028831,62970.0,62969.0,1.48019988]
[1721027203192,0.00028831,62970.0,62969.0,1.46619988]
[1721027203975,0.00028831,62970.0,62969.0,1.48019988]
[1721027204189,0.00028831,62970.0,62969.0,1.48019877]
[1721027204597,0.00028831,62970.0,62969.0,1.28019862]
[1721027205261,0.00028831,62970.0,62969.0,1.34828891]
[1721027205981,0.00028831,62970.0,62969.0,1.14828891]
[1721027206341,9.718e-05,62970.0,62969.0,1.14828891]
[1721027207249,0.07759718,62970.0,62969.0,1.14828891]
[1721027208005,9.718e-05,62970.0,62969.0,1.14828891]
[1721027208198,9.718e-05,62970.0,62969.0,1.13428891]
[1721027208402,9.718e-05,62970.0,62969.0,1.14828891]
[1721027208752,9.718e-05,62970.0,62969.0,1.38010891]
[1721027209096,9.718e-05,62970.0,62969.0,1.38102191]
[1721027209337,9.718e-05,62970.0,62969.0,1.56032191]
[1721027209537,9.718e-05,62970.0,62969.0,1.60852191]
[1721027209745,0.002,62977.0,62976.0,1.782057]
[1721027209943,0.0823,62983.0,62979.0,0.596213]
[1721027209944,0.002,62980.0,62979.0,0.596213]
[1721027210168,0.002,62982.0,62981.0,0.4287]
[1721027210423,0.002,62982.0,62981.0,0.5962]
[1721027210671,0.002,62984.0,62983.0,0.310395]
[1721027210791,0.002,62984.0,62983.0,0.6382254]
[1721027211194,0.002,62984.0,62983.0,1.5955984]
[1721027211395,0.08105238,62985.0,62984.0,0.596179]
[1721027211605,0.08105238,62985.0,62984.0,0.881965]
[1721027211804,0.08105238,62993.0,62987.0,0.796159]
[1721027212008,0.08105238,62993.0,62987.0,1.367705]
[1721027212239,0.08105238,62993.0,62987.0,1.399525]
[1721027212445,0.08105238,62993.0,62987.0,1.199525]
[1721027213922,0.08105238,62993.0,62987.0,0.927752]
[1721027214146,0.08105238,62993.0,62987.0,0.895932]
[1721027214349,0.08105238,62993.0,62987.0,0.909932]
[1721027214841,0.08105238,62993.0,62987.0,0.881932]
[1721027215224,0.08105238,62993.0,62987.0,0.895932]
[1721027215836,0.08105238,62993.0,62987.0,0.324386]
[1721027215837,100.141,62988.0,62987.0,0.324386]
[1721027216241,100.141,62988.0,62987.0,0.338386]
[1721027216518,100.141,62988.0,62987.0,0.310386]
[1721027216791,100.141,62988.0,62987.0,0.324386]
[1721027216965,100.141,62988.0,62987.0,0.1955]
[1721027217172,100.141,62988.0,62987.0,0.1815]
[1721027217375,100.141,62988.0,62987.0,0.014]
[1721027217584,100.569652,62988.0,62987.0,0.014]
[1721027217752,100.428652,62988.0,62987.0,0.014]
[1721027217958,100.573552,62988.0,62987.0,0.028]
[1721027218183,100.573552,62988.0,62987.0,0.014]
[1721027218184,100.693552,62988.0,62987.0,0.014]
[1721027218550,100.30770193,62988.0,62987.0,0.014]
[1721027218658,100.30770193,62988.0,62987.0,0.028]
[1721027219174,100.287784,62988.0,62987.0,0.028]
[1721027219383,100.59383395,62988.0,62987.0,0.028]
[1721027219574,100.59383395,62988.0,62987.0,0.014]
[1721027219776,0.142889,62986.0,62981.0,0.1675]
[1721027220075,0.08105238,62982.0,62981.0,0.1675]
[1721027220569,0.22395238,62982.0,62981.0,0.1675]
[1721027220985,0.22395238,62982.0,62981.0,0.1815]
[1721027221192,0.22395238,62982.0,62981.0,0.1955]
[1721027221354,0.22395238,62982.0,62981.0,0.1815]
[1721027221557,0.22395238,62982.0,62981.0,0.1675]
[1721027221759,0.22395238,62982.0,62981.0,0.1925]
[1721027221760,0.36684938,62982.0,62981.0,0.1925]
[1721027222572,1.22423438,62982.0,62981.0,0.025]
[1721027222766,1.36437043,62982.0,62981.0,0.025]
[1721027222970,1.39048854,62982.0,62981.0,0.025]
[1721027223136,1.67628354,62982.0,62981.0,0.012]
[1721027223341,1.37003375,62982.0,62981.0,0.012]
[1721027223542,1.43785787,62982.0,62981.0,0.013]
[1721027223743,1.39048961,62982.0,62981.0,0.013]
[1721027223909,1.39048961,62982.0,62981.0,0.025]
[1721027224106,1.39048961,62982.0,62981.0,0.012]
[1721027224413,0.14292,62973.0,62972.0,0.2258]
[1721027224603,0.24642824,62973.0,62972.0,0.2258]
[1721027224754,0.24642824,62973.0,62972.0,0.23731278]
[1721027225637,0.10150824,62973.0,62972.0,0.23731278]
[1721027226120,0.10387141,62973.0,62972.0,0.23731278]
[1721027226418,0.10387145,62973.0,62972.0,0.23731278]
[1721027226625,0.38978945,62973.0,62972.0,0.23731278]
[1721027226800,0.38778945,62973.0,62972.0,0.25031278]
[1721027226984,0.38778945,62973.0,62972.0,0.26331278]
[1721027227162,0.38978945,62973.0,62972.0,0.26331278]
[1721027228205,0.16381907,62973.0,62972.0,0.43081278]
[1721027228421,0.06,62977.0,62972.0,0.43081278]
[1721027228750,0.08105238,62975.0,62972.0,0.43081278]
[1721027228950,0.002,62974.0,62972.0,0.43081278]
[1721027229493,0.002,62974.0,62972.0,0.41781278]
[1721027229866,0.002,62974.0,62972.0,0.42581278]
[1721027230022,0.002,62974.0,62972.0,0.41281278]
[1721027230223,0.002,62974.0,62972.0,0.41481278]
[1721027230418,0.002,62974.0,62973.0,0.310418]
[1721027230619,0.38059479,62986.0,62975.0,0.310413]
[1721027230620,0.002,62977.0,62975.0,0.310413]
[1721027230821,0.22555238,62982.0,62977.0,0.1675]
[1721027230822,0.002,62981.0,62977.0,0.1675]
[1721027231022,0.02171921,62980.0,62977.0,0.1675]
[1721027231244,0.002,62979.0,62978.0,0.01151046]
[1721027231622,0.002,62981.0,62977.0,0.1675]
[1721027231842,0.002,62981.0,62978.0,0.01151046]
[1721027231843,0.02214878,62980.0,62978.0,0.01151046]
[1721027232109,0.002,62979.0,62978.0,0.01151046]
[1721027232289,0.002,62979.0,62977.0,0.1675]
[1721027232490,0.002,62981.0,62977.0,0.1675]
[1721027232692,0.02194638,62980.0,62977.0,0.1675]
[1721027232896,0.002,62979.0,62977.0,0.1675]
[1721027233307,0.002,62981.0,62978.0,0.01151046]
[1721027233506,0.02171277,62980.0,62978.0,0.01151046]
[1721027233716,0.002,62979.0,62977.0,0.1735]
[1721027234167,0.002,62981.0,62977.0,0.1725]
[1721027234284,0.02188268,62980.0,62977.0,0.1675]
[1721027234480,0.002,62979.0,62978.0,0.004]
[1721027234687,0.02388414,62979.0,62978.0,0.008]
[1721027234986,0.02188414,62979.0,62978.0,0.004]
[1721027235210,0.02188414,62980.0,62978.0,0.004]
[1721027235414,0.002,62979.0,62978.0,0.004]
[1721027235843,0.36845038,62982.0,62978.0,0.3278304]
[1721027235844,0.002,62981.0,62978.0,0.3278304]
[1721027236036,0.02201398,62980.0,62978.0,0.3278304]
[1721027236223,0.002,62979.0,62978.0,0.3278304]
[1721027236624,0.002,62981.0,62978.0,0.3278304]
[1721027237121,0.002,62981.0,62979.0,0.00317504]
[1721027237318,0.002,62981.0,62978.0,0.5013304]
[1721027237431,0.002,62981.0,62978.0,0.4953304]
[1721027237636,0.002,62981.0,62978.0,0.5043304]
[1721027237931,0.002,62981.0,62978.0,0.4993304]
[1721027238145,0.0648,62980.0,62978.0,0.4993304]
[1721027238351,0.0648,62980.0,62978.0,0.5013304]
[1721027238486,0.0648,62980.0,62978.0,0.4993304]
[1721027238687,0.002,62979.0,62978.0,0.4993304]
[1721027239055,0.16722621,62979.0,62978.0,0.3378304]
[1721027239271,0.24732799,62979.0,62978.0,0.3318304]
[1721027239431,0.10642399,62979.0,62978.0,0.3318304]
[1721027239683,0.10642399,62979.0,62978.0,0.3278304]
[1721027239883,0.10642399,62979.0,62978.0,0.3338304]
[1721027240065,0.24932799,62979.0,62978.0,0.3338304]
[1721027240507,0.24932799,62979.0,62978.0,0.3278304]
[1721027240650,0.24932799,62979.0,62978.0,0.3408304]
[1721027240860,0.24932799,62979.0,62978.0,0.3338304]
[1721027241054,1.28585499,62979.0,62978.0,0.3338304]
[1721027241284,1.28585499,62979.0,62972.0,0.00021218]
[1721027241285,0.692554,62973.0,62972.0,0.00021218]
[1721027241487,1.08176637,62973.0,62972.0,0.00021218]
[1721027241894,1.43866025,62973.0,62972.0,0.00021218]
[1721027242105,1.61186189,62973.0,62972.0,0.00021218]
[1721027242309,1.47106717,62973.0,62972.0,0.00021218]
[1721027242463,1.55481744,62973.0,62972.0,0.00021218]
[1721027242667,1.90065344,62973.0,62972.0,0.00721218]
[1721027242865,1.55481744,62973.0,62972.0,0.00721218]
[1721027243868,1.6731404,62973.0,62972.0,0.00721218]
[1721027243997,1.6731404,62973.0,62972.0,0.00021218]
[1721027244403,1.49773501,62973.0,62972.0,0.00021218]
[1721027244635,1.49973501,62973.0,62972.0,0.00021218]
[1721027244838,1.47194622,62973.0,62972.0,0.00021218]
[1721027245028,1.52226653,62973.0,62972.0,0.00121218]
[1721027245393,1.47494622,62973.0,62972.0,0.00121218]
[1721027245767,1.46874726,62973.0,62972.0,0.00021218]
[1721027246069,1.53970992,62973.0,62972.0,0.00021218]
[1721027246242,1.56552905,62973.0,62972.0,0.00021218]
[1721027246448,1.46974726,62973.0,62972.0,0.00021218]
[1721027246738,1.54170992,62973.0,62972.0,0.00021218]
[1721027246940,1.46874726,62973.0,62972.0,0.00021218]
[1721027247143,1.47774726,62973.0,62972.0,0.00121218]
[1721027247464,1.47174726,62973.0,62972.0,0.00021218]
[1721027247669,1.47074726,62973.0,62972.0,0.00021218]
[1721027247869,1.47074726,62973.0,62972.0,0.00121218]
[1721027247870,1.47474726,62973.0,62972.0,0.00121218]
[1721027248011,1.47674726,62973.0,62972.0,0.00121218]
[1721027248974,1.45327838,62973.0,62972.0,0.00121218]
[1721027249201,1.47696485,62973.0,62972.0,0.00121218]
[1721027249404,1.45327838,62973.0,62972.0,0.00121218]
[1721027249682,1.47705804,62973.0,62972.0,0.00121218]
[1721027251284,1.50288978,62973.0,62972.0,0.00121218]
[1721027255216,1.49688978,62973.0,62972.0,0.00021218]
[1721027255450,1.49688978,62973.0,62972.0,0.00121218]
[1721027255689,1.50926013,62973.0,62972.0,0.00121218]
[1721027255982,1.50926013,62973.0,62972.0,0.00021218]
[1721027256215,1.51626013,62973.0,62972.0,0.00121218]
[1721027256679,1.50926013,62973.0,62972.0,0.00021218]
[1721027256908,1.51626013,62973.0,62972.0,0.00121218]
[1721027257395,1.52626013,62973.0,62972.0,0.00221218]
[1721027257644,1.24042413,62973.0,62972.0,0.00221218]
[1721027257888,0.13620239,62973.0,62972.0,0.00221218]
[1721027258115,0.13620239,62973.0,62972.0,0.68183218]
[1721027258116,0.031,62973.0,62972.0,0.68183218]
[1721027258312,0.031,62973.0,62972.0,0.69394079]
[1721027258436,0.031,62973.0,62972.0,0.97978179]
[1721027258648,0.031,62973.0,62972.0,1.26562279]
[1721027258854,0.024,62973.0,62972.0,1.26462279]